fUST/lending_fUST_20260127
["ID","MTS","AMOUNT","RATE_DAILY","PERIOD"]
[403660394,1769451040365,-582.25572152,0.00012609,2]
[403660395,1769451040376,-450.66953665,0.00012609,2]
[403660396,1769451040385,-500.0,0.00012609,2]
[403660397,1769451040396,-500.0,0.00012609,2]
[403660398,1769451040405,-500.0,0.00012609,2]
[403660399,1769451040415,-500.0,0.00012609,2]
[403660400,1769451040425,-150.0,0.00012609,2]
[403660401,1769451040437,-150.0,0.00012609,2]
[403660402,1769451040446,-150.0,0.00012609,2]
[403660403,1769451040455,-150.0,0.00012609,2]
[403660404,1769451040465,-500.0,0.00012609,2]
[403660405,1769451040476,-600.0,0.00012609,2]
[403660406,1769451040486,-500.0,0.00012609,2]
[403660407,1769451040495,-500.0,0.00012746,2]
[403660408,1769451040505,-500.0,0.00012746,2]
[403660409,1769451040514,-500.0,0.00012746,2]
[403660410,1769451040524,-500.0,0.00012746,2]
[403660411,1769451040534,-500.0,0.00012746,2]
[403660412,1769451040544,-502.62334924,0.00012746,2]
[403660413,1769451040553,-200.0,0.00012746,2]
[403660414,1769451040563,-150.0,0.00012746,2]
[403660415,1769451040572,-200.0,0.00012746,2]
[403660416,1769451040582,-200.0,0.00012746,2]
[403660417,1769451040591,-300.81623099,0.00012746,2]
[403660418,1769451040600,-223.92590858,0.00012746,2]
[403660419,1769451040610,-1000.0,0.00012746,2]
[403660420,1769451040619,-244.0,0.00012746,2]
[403660421,1769451040629,-500.0,0.00012883,2]
[403660422,1769451040638,-500.0,0.00012883,2]
[403660423,1769451040647,-220.18654939,0.00012883,2]
[403660424,1769451040657,-150.95054583,0.00012883,2]
[403660425,1769451040666,-150.0,0.00012883,2]
[403660426,1769451040675,-292.45970376,0.00012883,2]
[403660427,1769451040684,-1821.46643833,0.000129,2]
[403660428,1769451040693,-1821.46643826,0.000129,2]
[403660429,1769451040702,-500.0,0.0001302,2]
[403660430,1769451040711,-500.0,0.0001302,2]
[403660431,1769451040720,-500.0,0.00013157,2]
[403660432,1769451040729,-500.0,0.00013157,2]
[403660433,1769451040739,-1691.76501777,0.00013166,2]
[403660434,1769451040748,-500.0,0.00013273,2]
[403660435,1769451040757,-502.99035624,0.00013273,2]
[403660436,1769451040767,-500.0,0.00013273,2]
[403660437,1769451040776,-500.0,0.00013273,2]
[403660438,1769451040785,-500.0,0.00013273,2]
[403660439,1769451040794,-500.0,0.00013273,2]
[403660440,1769451040804,-386.99327385,0.00013273,2]
[403660441,1769451040813,-501.2138829,0.00013273,2]
[403660442,1769451040823,-502.4998524,0.00013273,2]
[403660444,1769451040832,-500.0,0.00013273,2]
[403660446,1769451040842,-500.0,0.00013273,2]
[403660447,1769451040851,-500.92401321,0.00013273,2]
[403660449,1769451040860,-500.0,0.00013273,2]
[403660451,1769451040870,-501.2459449,0.00013273,2]
[403660453,1769451040879,-500.0,0.00013273,2]
[403660455,1769451040889,-500.0,0.00013273,2]
[403660457,1769451040899,-500.0,0.00013294,2]
[403660459,1769451040907,-500.0,0.00013294,2]
[403660461,1769451040917,-160.0,0.00013362,2]
[403660463,1769451040926,-1041.66666667,0.00013362,2]
[403660465,1769451040936,-500.0,0.00013431,2]
[403660467,1769451040945,-500.0,0.00013568,2]
[403660469,1769451040954,-1613.0,0.00013581,2]
[403660471,1769451040963,-300.0,0.00013673,2]
[403660473,1769451040973,-600.53,0.00013698,2]
[403660475,1769451040982,-600.53,0.00013698,2]
[403660477,1769451040992,-600.53,0.00013698,2]
[403660478,1769451041001,-600.53,0.00013698,2]
[403660480,1769451041011,-600.53,0.00013698,2]
[403660482,1769451041020,-600.53,0.00013698,2]
[403660484,1769451041029,-600.53,0.00013698,2]
[403660486,1769451041039,-600.53,0.00013698,2]
[403660488,1769451041048,-600.53,0.00013698,2]
[403660490,1769451041057,-600.53,0.00013698,2]
[403660492,1769451041066,-600.53,0.00013698,2]
[403660494,1769451041075,-600.53,0.00013698,2]
[403660496,1769451041084,-600.53,0.00013698,2]
[403660498,1769451041093,-600.53,0.00013698,2]
[403660500,1769451041102,-600.53,0.00013698,2]
[403660502,1769451041111,-600.53,0.00013698,2]
[403660504,1769451041120,-600.53,0.00013698,2]
[403660505,1769451041129,-600.53,0.00013698,2]
[403660507,1769451041138,-600.53,0.00013698,2]
[403660509,1769451041149,-600.53,0.00013698,2]
[403660511,1769451041158,-600.53,0.00013698,2]
[403660513,1769451041167,-600.53,0.00013698,2]
[403660515,1769451041176,-600.53,0.00013698,2]
[403660517,1769451041185,-600.74568546,0.00013698,2]
[403660519,1769451041194,-500.0,0.00013698,2]
[403660521,1769451041203,-500.0,0.00013698,2]
[403660523,1769451041212,-500.0,0.00013698,2]
[403660525,1769451041220,-626.122152,0.00013698,2]
[403660527,1769451041229,-953.37907197,0.00013698,2]
[403660529,1769451041239,-500.0,0.00013698,2]
[403660531,1769451041249,-500.0,0.00013698,2]
[403660533,1769451041259,-500.0,0.00013698,2]
[403660534,1769451041269,-500.0,0.00013698,2]
[403660536,1769451041278,-500.0,0.00013698,2]
[403660538,1769451041289,-500.0,0.00013698,2]
[403660540,1769451041298,-500.0,0.00013698,2]
[403660542,1769451041308,-282.825542,0.00013698,2]
[403660544,1769451041316,-228.02056982,0.00013699,2]
[403660546,1769451041326,-500.0,0.00013699,2]
[403660548,1769451041336,-500.0,0.00013699,2]
[403660550,1769451041346,-158.2,0.00013699,2]
[403660552,1769451041358,-288.2,0.00013699,2]
[403660554,1769451041367,-500.0,0.00013699,2]
[403660555,1769451041376,-500.0,0.00013699,2]
[403660557,1769451041385,-2000.0,0.00013699,7]
[403660559,1769451041395,-500.0,0.00013699,2]
[403660561,1769451041404,-300.01916849,0.00013699,2]
[403660563,1769451041413,-500.0,0.00013699,2]
[403660565,1769451041422,-500.0,0.00013705,2]
[403660567,1769451041432,-1000.0,0.00013821,2]
[403660569,1769451041442,-500.0,0.00013821,2]
[403660571,1769451041451,-500.0,0.00013821,2]
[403660573,1769451041460,-504.66008898,0.00013821,2]
[403660575,1769451041469,-1000.0,0.00013821,2]
[403660577,1769451041478,-1000.0,0.00013821,2]
[403660579,1769451041488,-1000.0,0.00013821,2]
[403660580,1769451041497,-1000.0,0.00013821,2]
[403660583,1769451041507,-465.41821725,0.00013842,2]
[403660584,1769451041516,-1000.0,0.00013973,2]
[403660586,1769451041525,-100000.0,0.0001399,2]
[403660588,1769451041534,-1000.0,0.00014021,2]
[403660590,1769451041543,-492.0,0.00014021,2]
[403660592,1769451041553,-459.61630181,0.00014116,2]
[403660594,1769451041562,-600.0,0.00014221,2]
[403660596,1769451041571,-1000.0,0.00014247,2]
[403660598,1769451041580,-1000.0,0.00014247,2]
[403660600,1769451041588,-1000.0,0.00014247,2]
[403660602,1769451041597,-1000.0,0.00014247,2]
[403660604,1769451041606,-1000.0,0.00014368,2]
[403660605,1769451041615,-1500.0,0.00014368,2]
[403660607,1769451041624,-1500.0,0.00014368,2]
[403660609,1769451041634,-1443.77363094,0.00014368,2]
[403660611,1769451041643,-1500.0,0.00014368,2]
[403660613,1769451041653,-1166.90309853,0.00014384,2]
[403660615,1769451041663,-900.0,0.00014768,2]
[403660617,1769451041672,-1500.0,0.00014795,2]
[403660619,1769451041681,-1461.62464944,0.00014795,2]
[403660621,1769451041690,-954.33550312,0.00014795,2]
[403660623,1769451041699,-603.99181188,0.00014795,2]
[403660625,1769451041708,-2000.0,0.00014916,2]
[403660627,1769451041717,-2000.0,0.00014916,2]
[403660629,1769451041728,-2000.0,0.00014916,2]
[403660631,1769451041738,-2258.0,0.0001494,2]
[403660633,1769451041747,-21582.27495747,0.00015041,2]
[403660635,1769451041756,-298.46,0.000151,2]
[403660636,1769451041765,-503.01,0.000151,2]
[403660638,1769451041774,-2000.0,0.00015274,7]
[403660640,1769451041784,-1200.0,0.00015316,2]
[403660642,1769451041793,-859.85,0.00015342,2]
[403660644,1769451041802,-10000.0,0.00015342,2]
[403660646,1769451041811,-9140.15,0.00015342,2]
[403660648,1769451041821,-2000.0,0.00015342,2]
[403660650,1769451041830,-1000.0,0.00015423,2]
[403660652,1769451041840,-791.0,0.00015423,2]
[403660654,1769451041850,-164.0,0.00015425,3]
[403660656,1769451041859,-2500.0,0.00015464,2]
[403660658,1769451041868,-2500.0,0.00015464,2]
[403660660,1769451041877,-2500.0,0.00015464,2]
[403660662,1769451041886,-5000.0,0.0001564,2]
[403660664,1769451041895,-2500.0,0.0001589,2]
[403660666,1769451041904,-1821.46643826,0.00015939,2]
[403660668,1769451041914,-3000.0,0.00016,2]
[403660670,1769451041923,-3000.0,0.0001601,2]
[403660672,1769451041931,-1975.94196246,0.00016012,2]
[403660673,1769451041941,-3000.0,0.00016012,2]
[403660674,1769451041951,-3000.0,0.0001602,2]
[403660676,1769451041960,-501.27029717,0.00016022,5]
[403660677,1769451041969,-3000.0,0.0001603,2]
[403660679,1769451041979,-3000.0,0.0001604,2]
[403660680,1769451041988,-3000.0,0.0001605,2]
[403660682,1769451041998,-3000.0,0.0001606,2]
[403660683,1769451042007,-4032.66127,0.0001607,2]
[403660685,1769451042017,-513.33768773,0.00016116,2]
[403660686,1769451042027,-179.92802879,0.00016168,2]
[403660688,1769451042036,-150.0,0.00016234,2]
[403660689,1769451042045,-2150.0,0.00016234,2]
[403660691,1769451042056,-418.0,0.00016234,2]
[403660692,1769451042066,-179.0,0.00016234,2]
[403660693,1769451042075,-1322.0,0.00016433,2]
[403660694,1769451042084,-250.0,0.00016438,2]
[403660695,1769451042094,-3000.0,0.00016438,2]
[403660697,1769451042103,-291.78946095,0.00016528,2]
[403660698,1769451042113,-525.22102971,0.00016528,2]
[403660699,1769451042122,-933.72627504,0.00016528,2]
[403660701,1769451042135,-153.37325415,0.00016528,2]
[403660702,1769451042145,-276.07185746,0.00016528,2]
[403660704,1769451042154,-490.79441327,0.00016528,2]
[403660705,1769451042163,-384.95312665,0.00016528,2]
[403660706,1769451042172,-692.91562797,0.00016528,2]
[403660708,1769451042181,-1231.85000529,0.00016528,2]
[403660709,1769451042191,-1924.76563326,0.00016528,2]
[403660710,1769451042200,-500.0,0.0001656,2]
[403660711,1769451042208,-2000.0,0.00016849,7]
[403660712,1769451042217,-1000.0,0.00016965,2]
[403660713,1769451042227,-1000.0,0.00016965,2]
[403660714,1769451042236,-3500.0,0.00016986,2]
[403660715,1769451042246,-168.0,0.00017334,2]
[403660716,1769451042255,-800.0,0.00017377,2]
[403660717,1769451042265,-800.0,0.00017387,2]
[403660718,1769451042275,-168.0,0.00017402,2]
[403660719,1769451042283,-2055.45,0.00017411,2]
[403660720,1769451042292,-800.0,0.00017446,2]
[403660721,1769451042302,-555.20891178,0.00017466,7]
[403660722,1769451042312,-151.0,0.00017499,3]
[403660723,1769451042321,-151.0,0.00017499,3]
[403660724,1769451042330,-151.0,0.00017499,3]
[403660725,1769451042339,-151.0,0.00017499,3]
[403660726,1769451042348,-553.64373807,0.00017499,3]
[403660727,1769451042361,-151.0,0.00017499,3]
[403660728,1769451042370,-574.12855637,0.00017499,3]
[403660729,1769451042381,-201.93286099,0.00017499,3]
[403660730,1769451042391,-209.40437684,0.00017499,3]
[403660731,1769451042401,-217.15233878,0.00017499,3]
[403660732,1769451042410,-225.18697532,0.00017499,3]
[403660733,1769451042419,-201.93286098,0.00017499,3]
[403660734,1769451042428,-233.51889341,0.00017499,3]
[403660735,1769451042440,-242.15909246,0.00017499,3]
[403660736,1769451042450,-251.11897888,0.00017499,3]
[403660737,1769451042459,-260.4103811,0.00017499,3]
[403660738,1769451042468,-270.0455652,0.00017499,3]
[403660739,1769451042477,-151.0,0.00017499,3]
[403660740,1769451042486,-280.03725112,0.00017499,3]
[403660741,1769451042495,-500.0,0.00017499,3]
[403660742,1769451042505,-151.0,0.00017499,3]
[403660743,1769451042514,-290.39862941,0.00017499,3]
[403660744,1769451042523,-500.0,0.00017499,3]
[403660745,1769451042533,-301.1433787,0.00017499,3]
[403660746,1769451042542,-500.0,0.00017499,3]
[403660747,1769451042552,-500.0,0.00017499,3]
[403660748,1769451042561,-500.0,0.00017499,3]
[403660749,1769451042571,-500.0,0.00017499,3]
[403660750,1769451042580,-500.0,0.00017499,3]
[403660751,1769451042589,-500.0,0.00017499,3]
[403660752,1769451042599,-500.0,0.00017499,3]
[403660753,1769451042607,-500.0,0.00017499,3]
[403660754,1769451042616,-500.0,0.00017499,3]
[403660755,1769451042626,-500.0,0.00017499,3]
[403660756,1769451042635,-2674.60743027,0.00017499,3]
[403660757,1769451042645,-2773.56790519,0.00017499,3]
[403660758,1769451042656,-770.10348176,0.0001753,2]
[403660759,1769451042665,-4000.0,0.00017534,2]
[403660760,1769451042675,-800.0,0.00017554,2]
[403660761,1769451042685,-800.0,0.00017561,2]
[403660762,1769451042694,-800.0,0.00017575,2]
[403660763,1769451042704,-168.0,0.00017607,2]
[403660764,1769451042713,-164.34495881,0.0001764,2]
[403660765,1769451042723,-3143.9152532,0.00017644,2]
[403660766,1769451042732,-150.0,0.00017808,2]
[403660767,1769451042742,-26566.35578582,0.00018,2]
[403660768,1769451042752,-20000.0,0.00018,2]
[403660769,1769451042761,-300.0,0.00018,2]
[403660770,1769451042770,-500.0,0.00018,2]
[403660772,1769451042779,-1553.143611,0.00018,2]
[403660773,1769451042789,-500.0,0.00018,2]
[403660774,1769451042798,-4500.0,0.00018082,2]
[403660775,1769451042808,-8518.12944651,0.000181,2]
[403660776,1769451042818,-8518.1294465,0.000181,2]
[403660777,1769451042828,-8518.1294465,0.000181,2]
[403660778,1769451042838,-8518.1294465,0.000181,2]
[403660779,1769451042847,-567.05907366,0.00018116,2]
[403660780,1769451042858,-301.7262602,0.00018356,2]
[403660781,1769451042867,-1032.93341515,0.00018425,7]
[403660782,1769451042876,-1099.536109,0.00018493,2]
[403660783,1769451042886,-1000.0,0.000185,2]
[403660784,1769451042895,-3061.20479703,0.0001863,2]
[403660785,1769451042906,-1000.0,0.00018662,2]
[403660786,1769451042915,-1000.0,0.00018662,2]
[403660787,1769451042925,-579.0,0.00018662,2]
[403660788,1769451042935,-168.0,0.00018673,2]
[403660789,1769451042944,-4982.608535,0.0001874,7]
[403660790,1769451042954,-5000.0,0.00018768,2]
[403660791,1769451042964,-303.10001603,0.000189,2]
[403660792,1769451042974,-303.10001603,0.000189,2]
[403660793,1769451042983,-284.71418992,0.00018917,7]
[403660794,1769451042992,-4110.89,0.00018994,2]
[403660795,1769451043001,-200.0,0.00019,2]
[403660796,1769451043011,-24460.05308202,0.00019,2]
[403660797,1769451043020,-2603.49,0.00019,2]
[403660798,1769451043030,-1000.0,0.00019,2]
[403660799,1769451043040,-303.10001603,0.00019089,2]
[403660800,1769451043049,-303.10001603,0.00019089,2]
[403660801,1769451043059,-38000.0,0.00019169,3]
[403660802,1769451043068,-2467.5559991,0.00019178,3]
[403660803,1769451043210,-38000.0,0.00019178,3]
[403660804,1769451043220,-23906.06026411,0.00019178,3]
[403660805,1769451043230,-1523.9,0.00019178,2]
[403660806,1769451043239,-1523.9,0.00019178,2]
[403660807,1769451043249,-1523.9,0.00019178,2]
[403660808,1769451043258,-507.9665,0.00019178,2]
[403660809,1769451043268,-507.9665,0.00019178,2]
[403660810,1769451043278,-507.9665,0.00019178,2]
[403660811,1769451043288,-507.9665,0.00019178,2]
[403660812,1769451043297,-507.9665,0.00019178,2]
[403660813,1769451043306,-507.9665,0.00019178,2]
[403660814,1769451043315,-507.9665,0.00019178,2]
[403660815,1769451043325,-507.9665,0.00019178,2]
[403660816,1769451043335,-507.9665,0.00019178,2]
[403660817,1769451043344,-507.9665,0.00019178,2]
[403660818,1769451043356,-507.9665,0.00019178,2]
[403660819,1769451043366,-507.9665,0.00019178,2]
[403660820,1769451043375,-507.9665,0.00019178,2]
[403660821,1769451043383,-507.9665,0.00019178,2]
[403660822,1769451043394,-507.9665,0.00019178,2]
[403660823,1769451043403,-507.9665,0.00019178,2]
[403660824,1769451043412,-384.77,0.00019178,2]
[403660825,1769451043421,-507.9665,0.00019178,2]
[403660826,1769451043432,-200.0,0.00019178,2]
[403660827,1769451043442,-507.9665,0.00019178,2]
[403660828,1769451043451,-507.9665,0.00019178,2]
[403660829,1769451043461,-507.96,0.00019178,2]
[403660830,1769451043470,-507.9665,0.00019178,2]
[403660831,1769451043480,-507.9665,0.00019178,2]
[403660832,1769451043490,-507.9665,0.00019178,2]
[403660833,1769451043499,-507.9665,0.00019178,2]
[403660834,1769451043508,-507.9665,0.00019178,2]
[403660835,1769451043517,-5072.35,0.000192,2]
[403660836,1769451043526,-303.88,0.000192,2]
[403660837,1769451043535,-168.46,0.000192,2]
[403660838,1769451043544,-16820.09,0.000192,2]
[403660839,1769451043553,-168.08,0.000192,2]
[403660840,1769451043562,-151.0,0.000192,2]
[403660841,1769451043571,-186.121299,0.000192,2]
[403660842,1769451043580,-151.0,0.000192,2]
[403660843,1769451043589,-186.121299,0.000192,2]
[403660844,1769451043598,-186.121299,0.000192,2]
[403660845,1769451043607,-186.121299,0.000192,2]
[403660846,1769451043616,-3130.10846657,0.00019205,5]
[403660847,1769451043626,-418.0,0.00019234,2]
[403660848,1769451043636,-179.0,0.00019234,2]
[403660849,1769451043646,-172.0,0.0001926,3]
[403660850,1769451043656,-303.10001603,0.00019278,2]
[403660851,1769451043665,-303.10001603,0.00019278,2]
[403660852,1769451043675,-271.0,0.00019349,2]
[403660853,1769451043684,-8604.0647855,0.00019367,2]
[403660854,1769451043693,-303.10001603,0.00019467,2]
[403660855,1769451043702,-303.10001603,0.00019467,2]
[403660856,1769451043711,-15005.0,0.000195,2]
[403660857,1769451043720,-151.0,0.000195,2]
[403660858,1769451043729,-151.0,0.000195,2]
[403660859,1769451043739,-151.0,0.000195,2]
[403660860,1769451043749,-1000.0,0.000195,2]
[403660861,1769451043758,-335.0,0.00019566,2]
[403660862,1769451043768,-303.10001603,0.00019656,2]
[403660863,1769451043777,-303.10001603,0.00019656,2]
[403660864,1769451043786,-1821.46643826,0.00019694,2]
[403660865,1769451043795,-387.0,0.00019734,2]
[403660866,1769451043805,-1288.709849,0.0001976,5]
[403660867,1769451043814,-1000.0,0.0001978,5]
[403660868,1769451043823,-1000.0,0.000198,5]
[403660869,1769451043832,-1000.0,0.0001982,5]
[403660870,1769451043842,-1000.0,0.0001984,5]
[403660871,1769451043852,-454.65002405,0.00019845,4]
[403660872,1769451043861,-454.65002405,0.00019845,4]
[403660873,1769451043870,-1000.0,0.0001986,5]
[403660874,1769451043881,-1000.0,0.0001988,5]
[403660875,1769451043890,-184.03,0.00019885,2]
[403660876,1769451043899,-1310.11303158,0.000199,7]
[403660877,1769451043908,-1000.0,0.000199,5]
[403660878,1769451043918,-1000.0,0.0001992,5]
[403660879,1769451043928,-1000.0,0.0001994,5]
[403660880,1769451043938,-1000.0,0.0001996,5]
[403660881,1769451043948,-1000.0,0.0001998,5]
[403660882,1769451043957,-1089055.60767904,0.0002,2]
[403660883,1769451043966,-1789.0,0.0002,2]
[403660884,1769451043975,-35780.8293759,0.0002,2]
[403660885,1769451043985,-150.0,0.0002,2]
[403660886,1769451043995,-7696.0,0.0002,7]
[403660887,1769451044004,-13946.21141685,0.0002,2]
[403660888,1769451044014,-14717.42926848,0.0002,2]
[403660889,1769451044023,-254.24557907,0.0002,21]
[403660890,1769451044032,-40754.30243773,0.0002,2]
[403660891,1769451044041,-10121.86053417,0.0002,20]
[403660892,1769451044051,-61871.22145461,0.0002,2]
[403660893,1769451044182,-668.75332602,0.0002,2]
[403660918,1769451153319,396.0,0.00034813,120]
[403660939,1769451309861,172.0,0.00019384,120]
[403660940,1769451311451,172.0,0.00020354,120]
[403660941,1769451312806,172.0,0.00021371,120]
[403660945,1769451331617,180.0,0.00018364,120]
[403660948,1769451355873,-1191.0,8.004e-05,2]
[403660950,1769451375734,-537.3,8.004e-05,2]
[403661220,1769451855565,554.26638081,0.00034849,120]
[403661319,1769451936683,1292.9465017,6.614e-05,2]
[403661361,1769452150135,-3271.7,6.867e-05,2]
[403661362,1769452150157,-5000.0,6.936e-05,2]
[403661363,1769452150177,-304.78723744,7.006e-05,2]
[403661364,1769452150198,-300.0,7.075e-05,2]
[403661365,1769452150219,-1056.76871871,7.076e-05,2]
[403661366,1769452154118,-1779.15800629,7.076e-05,2]
[403661367,1769452154138,-1200.0,7.131e-05,2]
[403661368,1769452154158,-287.27417924,7.168e-05,2]
[403661369,1769452161104,-5000.0,7.006e-05,2]
[403661370,1769452161124,-165.13763326,7.168e-05,2]
[403661371,1769452161146,-300.0,7.236e-05,2]
[403661372,1769452161166,-300.0,7.236e-05,2]
[403661373,1769452161186,-300.0,7.236e-05,2]
[403661374,1769452161206,-9442.54944249,7.237e-05,2]
[403661407,1769452232416,-0.28114753,7.165e-05,2]
[403661415,1769452238594,-676.69234242,7.165e-05,2]
[403661416,1769452238606,-4323.02651005,7.165e-05,2]
[403661417,1769452238615,-521.0,7.165e-05,2]
[403661418,1769452238626,-164.0,7.236e-05,2]
[403661419,1769452238636,-300.0,7.236e-05,2]
[403661420,1769452238649,-300.0,7.236e-05,2]
[403661421,1769452238659,-1200.0,7.236e-05,2]
[403661422,1769452238669,-300.0,7.236e-05,2]
[403661423,1769452238679,-50000.0,7.237e-05,2]
[403661424,1769452238690,-300.0,7.237e-05,2]
[403661425,1769452238701,-300.0,7.237e-05,2]
[403661426,1769452238711,-300.0,7.237e-05,2]
[403661427,1769452238722,-300.0,7.237e-05,2]
[403661428,1769452238731,-300.0,7.237e-05,2]
[403661429,1769452238741,-300.0,7.237e-05,2]
[403661430,1769452238750,-300.0,7.237e-05,2]
[403661431,1769452238760,-300.0,7.237e-05,2]
[403661432,1769452238771,-300.0,7.237e-05,2]
[403661433,1769452238780,-300.0,7.237e-05,2]
[403661434,1769452238789,-300.0,7.237e-05,2]
[403661435,1769452238799,-300.0,7.237e-05,2]
[403661436,1769452238808,-300.0,7.237e-05,2]
[403661437,1769452238818,-300.0,7.237e-05,2]
[403661438,1769452238827,-300.0,7.237e-05,2]
[403661439,1769452238837,-600.0,7.381e-05,2]
[403661440,1769452238846,-420.0,7.96e-05,2]
[403661441,1769452238856,-1680.0,7.96e-05,2]
[403661442,1769452238866,-420.0,7.96e-05,2]
[403661443,1769452238875,-24451.49301434,8.119e-05,2]
[403661444,1769452238889,-644.18382808,8.119e-05,2]
[403661445,1769452238900,-974904.32315758,8.119e-05,2]
[403661446,1769452238910,-720.0,8.119e-05,2]
[403661447,1769452238919,-6909.72990456,8.119e-05,2]
[403661448,1769452238929,-500.0,8.217e-05,2]
[403661449,1769452238939,-500.0,8.217e-05,2]
[403661450,1769452238950,-500.0,8.217e-05,2]
[403661451,1769452238959,-500.0,8.217e-05,2]
[403661452,1769452238972,-500.0,8.217e-05,2]
[403661453,1769452238982,-500.0,8.217e-05,2]
[403661454,1769452238991,-500.0,8.217e-05,2]
[403661455,1769452239002,-500.0,8.217e-05,2]
[403661456,1769452239011,-500.0,8.217e-05,2]
[403661457,1769452239020,-500.0,8.217e-05,2]
[403661458,1769452239030,-500.0,8.217e-05,2]
[403661459,1769452239039,-500.0,8.217e-05,2]
[403661460,1769452239048,-478.73989375,8.217e-05,2]
[403661461,1769452239058,-500.0,8.217e-05,2]
[403661462,1769452239068,-500.0,8.217e-05,2]
[403661463,1769452239078,-500.0,8.217e-05,2]
[403661464,1769452239088,-351.59943937,8.217e-05,2]
[403661465,1769452239099,-517.61551041,8.217e-05,2]
[403661466,1769452239109,-500.0,8.217e-05,2]
[403661467,1769452239118,-312.80868003,8.217e-05,2]
[403661468,1769452239128,-500.0,8.217e-05,2]
[403661469,1769452239138,-500.0,8.217e-05,2]
[403661470,1769452239148,-500.0,8.217e-05,2]
[403661471,1769452239157,-500.0,8.217e-05,2]
[403661472,1769452239167,-500.0,8.217e-05,2]
[403661473,1769452239176,-500.0,8.217e-05,2]
[403661474,1769452239189,-500.0,8.217e-05,2]
[403661475,1769452239200,-500.0,8.217e-05,2]
[403661476,1769452239211,-500.0,8.217e-05,2]
[403661477,1769452239220,-500.0,8.217e-05,2]
[403661478,1769452239230,-500.0,8.217e-05,2]
[403661479,1769452239240,-500.0,8.217e-05,2]
[403661480,1769452239250,-500.0,8.217e-05,2]
[403661481,1769452239260,-265.84718791,8.217e-05,2]
[403661482,1769452239270,-500.0,8.217e-05,2]
[403661483,1769452239280,-500.0,8.217e-05,2]
[403661484,1769452239289,-500.0,8.217e-05,2]
[403661485,1769452239299,-500.0,8.217e-05,2]
[403661486,1769452239308,-500.0,8.217e-05,2]
[403661487,1769452239318,-500.0,8.217e-05,2]
[403661488,1769452239327,-500.0,8.217e-05,2]
[403661489,1769452239336,-500.0,8.217e-05,2]
[403661490,1769452239346,-500.0,8.217e-05,2]
[403661491,1769452239356,-500.0,8.217e-05,2]
[403661492,1769452239366,-500.0,8.217e-05,2]
[403661493,1769452239375,-500.0,8.217e-05,2]
[403661494,1769452239385,-500.0,8.217e-05,2]
[403661495,1769452239394,-500.0,8.217e-05,2]
[403661496,1769452239404,-500.0,8.217e-05,2]
[403661497,1769452239414,-500.0,8.217e-05,2]
[403661498,1769452239424,-500.0,8.217e-05,2]
[403661499,1769452239434,-500.0,8.217e-05,2]
[403661500,1769452239444,-430.81607952,8.217e-05,2]
[403661501,1769452239453,-500.0,8.217e-05,2]
[403661502,1769452239463,-500.0,8.217e-05,2]
[403661503,1769452239473,-500.0,8.217e-05,2]
[403661504,1769452239484,-500.0,8.217e-05,2]
[403661505,1769452239494,-500.0,8.217e-05,2]
[403661506,1769452239503,-500.0,8.217e-05,2]
[403661507,1769452239513,-500.0,8.219e-05,2]
[403661508,1769452239523,-500.0,8.219e-05,2]
[403661509,1769452239532,-150.0,8.219e-05,2]
[403661510,1769452239541,-150.0,8.219e-05,2]
[403661511,1769452239551,-500.0,8.219e-05,2]
[403661512,1769452239560,-500.0,8.219e-05,2]